bitfinex/quotes_BTCUSD_20250610
["timestamp","ask_amount","ask_price","bid_price","bid_amount"]
[1749525571765,0.2140967,109470.0,109460.0,2.20490421]
[1749525571976,1.00913367,109480.0,109470.0,0.22640237]
[1749525572208,1.0,109480.0,109470.0,7.33145647]
[1749525572460,0.6,109480.0,109470.0,7.85491456]
[1749525572672,0.6,109480.0,109470.0,7.84849486]
[1749525572902,0.6,109480.0,109470.0,7.36592439]
[1749525573359,0.6,109480.0,109470.0,8.17018725]
[1749525573580,0.6,109480.0,109470.0,8.16376754]
[1749525573805,0.6,109480.0,109470.0,8.17018707]
[1749525574023,0.6,109480.0,109470.0,8.16376754]
[1749525574238,0.602,109480.0,109470.0,8.17018707]
[1749525574503,0.602,109480.0,109470.0,8.09729747]
[1749525574724,0.604,109480.0,109470.0,7.53541787]
[1749525574952,0.611,109480.0,109470.0,8.1701871]
[1749525575177,0.15020818,109480.0,109470.0,8.60415533]
[1749525575412,0.13383197,109480.0,109470.0,8.10307358]
[1749525575632,0.13383197,109480.0,109470.0,8.10307354]
[1749525575846,0.13383197,109480.0,109470.0,8.10307343]
[1749525576057,0.13027402,109480.0,109470.0,7.54846184]
[1749525576289,0.12490513,109480.0,109470.0,8.09665455]
[1749525576510,0.13290513,109480.0,109470.0,8.1030735]
[1749525576730,0.12390513,109480.0,109470.0,7.54846191]
[1749525576954,0.11990513,109480.0,109470.0,7.54204296]
[1749525577168,0.12490513,109480.0,109470.0,7.54846191]
[1749525577387,0.00490513,109480.0,109470.0,7.54846192]
[1749525577632,0.00490513,109480.0,109470.0,7.54204296]
[1749525577847,0.02026183,109510.0,109500.0,0.21004464]
[1749525578113,0.02026183,109510.0,109500.0,1.91039084]
[1749525578357,0.03852432,109510.0,109500.0,1.91039084]
[1749525578564,0.03852432,109510.0,109500.0,2.31039084]
[1749525579010,0.04765573,109510.0,109500.0,2.31039084]
[1749525579230,0.04765573,109510.0,109500.0,2.31047926]
[1749525579878,0.0385249,109510.0,109500.0,2.31047926]
[1749525580102,0.004,109510.0,109500.0,2.31047926]
[1749525580326,0.004,109510.0,109500.0,7.3332741]
[1749525580547,0.004,109510.0,109500.0,6.96954765]
[1749525581011,0.00391435,109510.0,109500.0,7.36954765]
[1749525581470,0.02217618,109510.0,109500.0,6.98830489]
[1749525581687,0.03130734,109510.0,109500.0,7.39629814]
[1749525581945,0.02217618,109510.0,109500.0,7.39629814]
[1749525582395,0.03130734,109510.0,109500.0,7.02429814]
[1749525582617,0.04043867,109510.0,109500.0,7.39625814]
[1749525583485,0.03130734,109510.0,109500.0,7.39625814]
[1749525583708,0.04957008,109510.0,109500.0,7.02429814]
[1749525583921,0.04957008,109510.0,109500.0,7.39625814]
[1749525584761,0.04957083,109510.0,109500.0,7.39625814]
[1749525585163,0.04043925,109510.0,109500.0,7.43253169]
[1749525585435,0.04957075,109510.0,109500.0,7.43253169]
[1749525585645,0.04957075,109510.0,109500.0,6.8779201]
[1749525585893,0.04043975,109510.0,109500.0,4.6300201]
[1749525586517,0.03943975,109510.0,109500.0,4.60286931]
[1749525586730,0.03943975,109510.0,109500.0,5.1574809]
[1749525586954,0.04857133,109510.0,109500.0,5.1574809]
[1749525587171,0.04757133,109510.0,109500.0,5.1574809]
[1749525587388,0.04757133,109510.0,109500.0,5.21189122]
[1749525589316,0.02930825,109510.0,109500.0,5.21189122]
[1749525589554,0.02017642,109510.0,109500.0,5.21189122]
[1749525590409,0.02017642,109510.0,109500.0,4.65727963]
[1749525591249,0.02930775,109510.0,109500.0,4.65727963]
[1749525591474,0.02017642,109510.0,109500.0,4.65727963]
[1749525592328,0.02017642,109510.0,109500.0,4.62100608]
[1749525592580,0.02930767,109510.0,109500.0,4.62100608]
[1749525593018,0.02017642,109510.0,109500.0,4.62100608]
[1749525594176,0.02930775,109510.0,109500.0,4.62100608]
[1749525594647,0.02017642,109510.0,109500.0,4.62100608]
[1749525596090,0.02930767,109510.0,109500.0,4.62100608]
[1749525596305,0.02930767,109510.0,109500.0,4.56659576]
[1749525597408,0.02930767,109510.0,109500.0,3.96094536]
[1749525597409,0.04510767,109510.0,109500.0,3.96094536]
[1749525597632,0.04510767,109510.0,109500.0,3.88805576]
[1749525597849,0.04510767,109510.0,109500.0,3.96094536]
[1749525599373,0.05423917,109510.0,109500.0,4.51566573]
[1749525599579,0.05423908,109510.0,109500.0,4.51566573]
[1749525600044,0.05423908,109510.0,109500.0,3.96099975]
[1749525600441,0.04510767,109510.0,109500.0,3.21583385]
[1749525600623,0.06963908,109510.0,109500.0,3.77963166]
[1749525601103,0.05137642,109510.0,109500.0,3.77963166]
[1749525601288,0.06050775,109510.0,109500.0,3.70674206]
[1749525601488,0.06050775,109510.0,109500.0,3.79800153]
[1749525602683,0.05137642,109510.0,109500.0,3.79800153]
[1749525603096,0.05137634,109510.0,109500.0,4.35266751]
[1749525603504,0.03597634,109510.0,109500.0,4.35266751]
[1749525604945,0.05197634,109510.0,109500.0,4.35266751]
[1749525605149,0.06110759,109510.0,109500.0,4.35266751]
[1749525606169,0.07023892,109510.0,109500.0,4.35266751]
[1749525606585,0.06110759,109510.0,109500.0,4.09706751]
[1749525606818,0.24374023,109510.0,109500.0,0.719139]
[1749525607028,0.23460898,109510.0,109500.0,0.62708452]
[1749525607232,0.23460898,109510.0,109500.0,0.62734114]
[1749525607439,0.23460898,109510.0,109500.0,0.53608167]
[1749525607656,0.23460898,109510.0,109500.0,0.60906484]
[1749525607872,0.25802778,109510.0,109500.0,0.58214219]
[1749525608569,0.25802778,109510.0,109500.0,0.50915902]
[1749525608775,0.25802778,109510.0,109500.0,0.50008842]
[1749525608983,0.25802778,109510.0,109500.0,0.55480606]
[1749525609191,0.25802778,109510.0,109500.0,0.59128615]
[1749525609192,0.35744256,109510.0,109500.0,0.59128615]
[1749525609626,0.35744256,109510.0,109500.0,0.53656851]
[1749525610706,0.35744256,109510.0,109500.0,0.56389775]
[1749525610934,0.35552821,109510.0,109500.0,0.56389775]
[1749525611166,0.35552821,109510.0,109500.0,0.53656851]
[1749525611405,0.35552821,109510.0,109500.0,0.54256851]
[1749525611621,0.63892821,109510.0,109500.0,0.54256851]
[1749525611831,0.63892821,109510.0,109500.0,0.56988913]
[1749525612089,0.63892821,109510.0,109500.0,0.57488913]
[1749525612759,0.63892821,109510.0,109500.0,0.17488913]
[1749525613188,0.35552821,109510.0,109500.0,0.17488913]
[1749525613396,0.63892821,109510.0,109500.0,0.57488913]
[1749525614225,0.63892821,109510.0,109500.0,0.58130948]
[1749525614432,0.63892821,109510.0,109500.0,0.57488913]
[1749525614637,0.63892821,109510.0,109500.0,0.58130949]
[1749525614839,0.63892821,109510.0,109500.0,0.57488913]
[1749525615225,0.63892821,109510.0,109500.0,0.58130948]
[1749525615432,0.63892821,109510.0,109500.0,0.5813095]
[1749525615775,0.66634321,109510.0,109500.0,0.53840904]
[1749525616447,0.66634321,109510.0,109500.0,0.54482942]
[1749525616867,0.66634321,109510.0,109500.0,0.53840904]
[1749525617080,0.66634321,109510.0,109500.0,0.54482938]
[1749525617521,0.66634321,109510.0,109500.0,0.54482937]
[1749525617721,0.66634321,109510.0,109500.0,0.53840904]
[1749525618373,0.66634321,109510.0,109500.0,0.54482937]
[1749525618801,0.66634321,109510.0,109500.0,0.53840904]
[1749525619139,0.66634321,109510.0,109500.0,0.54482937]
[1749525619342,0.66634321,109510.0,109500.0,0.53840904]
[1749525619547,0.66634321,109510.0,109500.0,0.54482937]
[1749525619966,0.38294321,109510.0,109500.0,0.53840904]
[1749525620211,0.38294321,109510.0,109500.0,0.54482937]
[1749525620410,0.54709035,109510.0,109500.0,1.12981941]
[1749525620767,0.54709035,109510.0,109500.0,1.13623957]
[1749525620883,0.54709035,109510.0,109500.0,1.13623942]
[1749525621088,0.54709035,109510.0,109500.0,1.12981941]
[1749525621494,0.53947343,109510.0,109500.0,0.58130913]
[1749525621714,0.53947343,109510.0,109500.0,0.57488913]
[1749525621917,0.53947343,109510.0,109500.0,0.5813091]
[1749525622149,0.54709035,109510.0,109500.0,0.57488913]
[1749525622554,0.54709035,109510.0,109500.0,0.58130909]
[1749525622884,0.54709035,109510.0,109500.0,0.58130912]
[1749525623193,0.54709035,109510.0,109500.0,0.5813092]
[1749525623332,0.54709035,109510.0,109500.0,0.57488913]
[1749525625158,0.26373035,109510.0,109500.0,0.57488913]
[1749525625327,0.54705035,109510.0,109500.0,0.57488913]
[1749525626382,0.53943343,109510.0,109500.0,0.57488913]
[1749525626618,0.54705035,109510.0,109500.0,0.57488913]
[1749525627221,0.53943343,109510.0,109500.0,0.57488913]
[1749525627633,0.54705035,109510.0,109500.0,0.57488913]
[1749525627839,0.54705035,109510.0,109500.0,0.54756851]
[1749525628438,0.53943343,109510.0,109500.0,0.54756851]
[1749525628603,0.54705035,109510.0,109500.0,0.54756851]
[1749525629619,0.54705035,109510.0,109500.0,0.57488605]
[1749525629793,0.35552821,109510.0,109500.0,0.53840596]
[1749525629998,0.63880821,109510.0,109500.0,0.53840596]
[1749525630274,0.63119129,109510.0,109500.0,0.57488605]
[1749525630414,0.63880821,109510.0,109500.0,0.57488605]
[1749525630788,0.34791129,109510.0,109500.0,0.57488605]
[1749525630918,0.63880821,109510.0,109500.0,0.57488605]
[1749525633733,0.63880821,109510.0,109500.0,0.54756851]
[1749525633878,0.63880821,109510.0,109500.0,0.55398875]
[1749525634290,0.63880821,109510.0,109500.0,0.55398877]
[1749525634541,0.63880821,109510.0,109500.0,0.54756851]
[1749525634758,0.63880821,109510.0,109500.0,0.55398874]
[1749525634883,0.63119129,109510.0,109500.0,0.55398878]
[1749525635085,0.63880821,109510.0,109500.0,0.55398878]
[1749525635312,0.63119129,109510.0,109500.0,0.54756851]
[1749525635588,0.63880821,109510.0,109500.0,0.54756851]
[1749525636000,0.63119129,109510.0,109500.0,0.54756851]
[1749525636181,0.63880821,109510.0,109500.0,0.55398876]
[1749525636385,0.63880821,109510.0,109500.0,0.55398878]
[1749525636589,0.63880821,109510.0,109500.0,0.60870642]
[1749525636841,0.63880821,109510.0,109500.0,0.60228615]
[1749525637206,0.63880821,109510.0,109500.0,0.60870642]
[1749525638131,0.63880821,109510.0,109500.0,0.63664627]
[1749525638302,0.63880821,109510.0,109500.0,0.63022601]
[1749525639861,0.63119129,109510.0,109500.0,0.63022601]
[1749525640296,0.63880821,109510.0,109500.0,0.63022601]
[1749525641362,0.63119129,109510.0,109500.0,0.63022601]
[1749525641573,0.63880821,109510.0,109500.0,0.63022601]
[1749525643085,0.63880821,109510.0,109500.0,0.59374592]
[1749525646134,0.63880821,109510.0,109500.0,0.63025318]
[1749525648733,0.35552821,109510.0,109500.0,0.63025318]
[1749525648946,0.35552821,109510.0,109500.0,0.6366709]
[1749525648947,0.63864821,109510.0,109500.0,0.6366709]
[1749525649583,0.63864821,109510.0,109500.0,0.63667091]
[1749525649790,0.63864821,109510.0,109500.0,0.63667166]
[1749525650235,0.63864821,109510.0,109500.0,0.63667165]
[1749525650446,0.63864821,109510.0,109500.0,0.63667167]
[1749525650658,0.63864821,109510.0,109500.0,0.63025318]
[1749525651085,0.63864821,109510.0,109500.0,0.63667165]
[1749525652224,0.63864821,109510.0,109500.0,0.63667166]
[1749525652664,0.63864821,109510.0,109500.0,0.63667183]
[1749525652839,0.63864821,109510.0,109500.0,0.63025318]
[1749525654652,0.63864821,109510.0,109500.0,0.6366708]
[1749525655539,0.63864821,109510.0,109500.0,0.63025318]
[1749525655797,0.65318906,109510.0,109500.0,0.60231332]
[1749525656030,0.72580741,109510.0,109500.0,0.51108842]
[1749525656263,0.75322541,109510.0,109500.0,0.52606479]
[1749525656475,0.84090541,109510.0,109500.0,0.52606479]
[1749525656693,0.84090541,109510.0,109500.0,0.52604863]
[1749525656911,0.84090541,109510.0,109500.0,0.52603643]
[1749525657138,0.84090541,109510.0,109500.0,0.49548842]
[1749525657353,0.84090541,109510.0,109500.0,0.511]
[1749525657569,0.84090541,109510.0,109500.0,0.411]
[1749525658280,0.76828706,109510.0,109500.0,0.005]
[1749525658492,0.76828706,109510.0,109500.0,0.008]
[1749525658703,0.76828706,109510.0,109500.0,0.408]
[1749525659368,0.76824706,109510.0,109500.0,0.408]
[1749525659600,0.76824706,109510.0,109500.0,0.403]
[1749525660040,0.76824706,109510.0,109500.0,0.005]
[1749525660259,0.27790756,109490.0,109480.0,0.002]
[1749525660477,0.74050542,109490.0,109480.0,0.40204856]
[1749525660855,0.76792742,109490.0,109480.0,0.40204856]
[1749525662011,0.76792742,109490.0,109480.0,0.40704856]
[1749525662567,0.76792742,109490.0,109480.0,0.4195784]
[1749525662776,0.76792742,109490.0,109480.0,0.41104856]
[1749525662982,0.76792742,109490.0,109480.0,0.41957841]
[1749525663734,0.76792742,109490.0,109480.0,0.41957418]
[1749525663940,0.76792742,109490.0,109480.0,0.41104856]
[1749525664219,0.77710541,109490.0,109480.0,0.4195742]
[1749525664420,0.77710541,109490.0,109480.0,0.41957419]
[1749525664628,0.77710541,109490.0,109480.0,0.41104856]
[1749525665569,0.86890327,109490.0,109480.0,0.01104856]
[1749525665787,0.86890327,109490.0,109480.0,0.00704856]
[1749525666196,0.86890327,109490.0,109480.0,0.00304856]
[1749525666724,0.86890327,109490.0,109480.0,0.00504856]
[1749525667156,0.86890327,109490.0,109480.0,0.00304856]
[1749525667366,0.86890327,109490.0,109480.0,0.00404856]
[1749525667572,0.86890327,109490.0,109480.0,0.00304856]
[1749525667801,0.86128635,109490.0,109480.0,0.00304856]
[1749525668609,0.86890327,109490.0,109480.0,0.00304856]
[1749525674697,0.77710541,109490.0,109480.0,0.00304856]
[1749525678306,0.27774427,109470.0,109460.0,0.40501]
[1749525678472,0.73272521,109470.0,109460.0,0.40505847]
[1749525678840,0.74034213,109470.0,109460.0,0.00505847]
[1749525678980,0.76777313,109470.0,109460.0,0.00505847]
[1749525679161,0.76777313,109470.0,109460.0,0.40505847]
[1749525679573,0.76777313,109470.0,109460.0,0.41005847]
[1749525682293,0.7950091,109470.0,109460.0,0.01005847]
[1749525682692,0.7950091,109470.0,109460.0,0.41005847]
[1749525685966,0.7950091,109470.0,109460.0,0.01005847]
[1749525686139,0.7950091,109470.0,109460.0,0.41005847]
[1749525687310,0.7950091,109470.0,109460.0,0.01005847]
[1749525687517,0.78739218,109470.0,109460.0,0.01005847]
[1749525687834,0.7950091,109470.0,109460.0,0.01005847]
[1749525689189,1.2686491,109470.0,109460.0,0.01005847]
[1749525690297,1.29779891,109470.0,109460.0,0.01005847]
[1749525690730,1.2686491,109470.0,109460.0,0.01005847]
[1749525690938,1.2684491,109470.0,109460.0,0.01005847]
[1749525691089,0.8978491,109470.0,109460.0,0.01005847]
[1749525691300,1.2684491,109470.0,109460.0,0.01005847]
[1749525691865,0.8978491,109470.0,109460.0,0.01005847]
[1749525692066,1.2684491,109470.0,109460.0,0.01005847]
[1749525692514,1.26083218,109470.0,109460.0,0.01005847]
[1749525692917,1.2684491,109470.0,109460.0,0.01005847]
[1749525693322,0.41659218,109470.0,109460.0,0.01860004]
[1749525693531,0.71421536,109470.0,109460.0,0.02565847]
[1749525693742,0.43891228,109470.0,109460.0,0.03419962]
[1749525693938,0.72183228,109470.0,109460.0,0.05128108]
[1749525694139,0.73637313,109470.0,109460.0,0.05128106]
[1749525694341,0.73637313,109470.0,109460.0,0.04274009]
[1749525694615,0.73637313,109470.0,109460.0,0.03568084]
[1749525694893,0.73637313,109470.0,109460.0,0.02714006]
[1749525695062,0.75157313,109470.0,109460.0,0.41005847]
[1749525695262,0.75157313,109470.0,109460.0,0.42714006]
[1749525695436,0.75157313,109470.0,109460.0,0.41005847]
[1749525695806,0.75157313,109470.0,109460.0,0.43568085]
[1749525696055,0.72875621,109470.0,109460.0,0.42714008]
[1749525696272,0.35815621,109470.0,109460.0,0.45098078]
[1749525696485,0.34361536,109470.0,109460.0,0.43389924]
[1749525696693,0.2243865,109470.0,109460.0,1.03419115]
[1749525696895,0.51488342,109470.0,109460.0,1.07182997]
[1749525697099,0.51488342,109470.0,109460.0,0.51658337]
[1749525697323,0.5072665,109470.0,109460.0,0.51658337]
[1749525697527,0.5072665,109470.0,109460.0,0.53367537]
[1749525697732,0.5072665,109470.0,109460.0,0.53367548]
[1749525697934,0.5072665,109470.0,109460.0,0.51658337]
[1749525698134,0.5072665,109470.0,109460.0,0.53367548]
[1749525698354,0.5072665,109470.0,109460.0,0.47895784]
[1749525698559,0.5072665,109470.0,109460.0,0.46186573]
[1749525698771,0.5072665,109470.0,109460.0,0.47895783]
[1749525698971,0.2009677,109470.0,109460.0,1.08892203]
[1749525699175,0.4838077,109470.0,109460.0,1.05241477]
[1749525699379,0.4838077,109470.0,109460.0,1.07173936]
[1749525699563,0.4838077,109470.0,109460.0,1.08883059]
[1749525699788,0.4838077,109470.0,109460.0,1.07173936]
[1749525700400,0.2009677,109470.0,109460.0,1.07173936]
[1749525700579,0.4838077,109470.0,109460.0,1.05241363]
[1749525700779,0.4838077,109470.0,109460.0,1.05241359]
[1749525700949,0.4838077,109470.0,109460.0,1.05241356]
[1749525701152,0.4838077,109470.0,109460.0,1.03532271]
[1749525701360,0.2009677,109470.0,109460.0,1.28064926]
[1749525701540,0.4837677,109470.0,109460.0,1.28064922]
[1749525701743,0.4837677,109470.0,109460.0,1.28064916]
[1749525701953,0.2009677,109470.0,109460.0,1.22717344]
[1749525702153,0.2009677,109470.0,109460.0,1.23630886]
[1749525702413,0.2009677,109470.0,109460.0,1.38063379]
[1749525702614,0.2009677,109470.0,109460.0,1.37268054]
[1749525702770,0.2009677,109470.0,109460.0,1.39890463]
[1749525702970,0.02740408,109470.0,109460.0,1.35457953]
[1749525703221,0.21923745,109470.0,109460.0,1.34344428]
[1749525703405,0.21010295,109470.0,109460.0,1.33430894]
[1749525703617,0.21010295,109470.0,109460.0,1.34726149]
[1749525703803,0.2009682,109470.0,109460.0,1.3472615]
[1749525703966,0.19183337,109470.0,109460.0,0.95339733]
[1749525704171,0.19183337,109470.0,109460.0,0.94544486]
[1749525704370,0.19183337,109470.0,109460.0,0.97666828]
[1749525704577,0.19183337,109470.0,109460.0,1.37666827]
[1749525704772,0.19183337,109470.0,109460.0,1.3595802]
[1749525704981,0.19183337,109470.0,109460.0,1.37666825]
[1749525705215,0.00913467,109470.0,109460.0,1.67760136]
[1749525705381,0.01826909,109470.0,109460.0,1.66051273]
[1749525705767,0.03653767,109470.0,109460.0,7.01036041]
[1749525705969,0.0456725,109470.0,109460.0,7.0103204]
[1749525706396,0.0456725,109470.0,109460.0,7.01032041]
[1749525706602,0.03653767,109470.0,109460.0,6.99323273]
[1749525707209,0.03653767,109470.0,109460.0,7.01017666]
[1749525707407,0.03653767,109470.0,109460.0,6.99323273]
[1749525707648,0.18266508,109490.0,109480.0,0.00913408]
[1749525707855,1.02670269,109500.0,109490.0,0.015]
[1749525708058,1.02670269,109500.0,109490.0,0.04222688]
[1749525708265,0.46538269,109500.0,109490.0,0.05916816]
[1749525708471,0.46538269,109500.0,109490.0,0.45916816]
[1749525708797,0.46538269,109500.0,109490.0,0.44222688]
[1749525708969,0.46534269,109500.0,109490.0,0.44222688]
[1749525709936,0.46534269,109500.0,109490.0,0.44322688]
[1749525710523,0.46534269,109500.0,109490.0,0.44522688]
[1749525710682,0.46534269,109500.0,109490.0,0.45439403]
[1749525711669,0.46534269,109500.0,109490.0,0.45434961]
[1749525712536,0.27227172,109510.0,109490.0,1.22025996]
[1749525712715,0.18463172,109510.0,109500.0,0.74017768]
[1749525712912,0.18463172,109510.0,109500.0,0.77420971]
[1749525713298,0.18463172,109510.0,109500.0,1.18980979]
[1749525713600,0.18463172,109510.0,109500.0,0.99802906]
[1749525713767,0.18463172,109510.0,109500.0,0.44478246]
[1749525713970,0.1847201,109510.0,109500.0,0.44578246]
[1749525714386,0.1847201,109510.0,109500.0,0.4186]
[1749525715265,0.1847201,109510.0,109500.0,0.44578246]
[1749525715652,0.01121954,109510.0,109500.0,1.42997996]
[1749525715857,0.21211358,109510.0,109500.0,1.45715359]
[1749525716054,0.21211358,109510.0,109500.0,1.83975359]
[1749525716055,0.22124516,109510.0,109500.0,1.83975359]
[1749525716671,0.22124516,109510.0,109500.0,1.84688575]
[1749525716871,0.22124516,109510.0,109500.0,1.84588575]
[1749525718053,0.22124516,109510.0,109500.0,1.85501783]
[1749525718237,0.02035045,109510.0,109500.0,1.8369672]
[1749525718375,0.02948178,109510.0,109500.0,1.8369672]
[1749525718574,0.02948178,109510.0,109500.0,1.89142565]
[1749525718994,0.03861319,109510.0,109500.0,1.89142565]
[1749525719195,0.02948178,109510.0,109500.0,1.89142565]
[1749525719968,0.02035045,109510.0,109500.0,1.89142565]
[1749525720174,0.0294817,109510.0,109500.0,1.89142565]
[1749525720387,0.01121929,109510.0,109500.0,7.58847011]
[1749525720592,0.02035045,109510.0,109500.0,7.30587011]
[1749525720798,0.02035037,109510.0,109500.0,7.67587011]
[1749525720996,0.02035037,109510.0,109500.0,7.63956448]
[1749525721432,0.00208838,109510.0,109500.0,7.63956448]
[1749525721641,0.00208838,109510.0,109500.0,7.58510603]
[1749525722043,0.02035037,109510.0,109500.0,7.58510603]
[1749525723336,0.00208838,109510.0,109500.0,7.58510603]
[1749525723541,0.02035037,109510.0,109500.0,7.58510603]
[1749525723765,0.00208838,109510.0,109500.0,7.58510603]
[1749525723975,0.01121929,109510.0,109500.0,7.6580892]
[1749525724592,0.02035029,109510.0,109500.0,7.6580892]
[1749525725114,0.01121929,109510.0,109500.0,7.6580892]
[1749525725621,0.00208838,109510.0,109500.0,7.6580892]
[1749525725827,0.01121929,109510.0,109500.0,7.6580892]
[1749525726040,0.00208838,109510.0,109500.0,7.6580892]
[1749525726252,0.00208838,109510.0,109500.0,7.8830892]
[1749525726669,0.00208838,109510.0,109500.0,7.92547228]
[1749525727281,0.00208838,109510.0,109500.0,7.55547228]
[1749525727496,0.00208838,109510.0,109500.0,7.92539228]
[1749525727907,0.00208838,109510.0,109500.0,7.55547228]
[1749525728080,0.00208838,109510.0,109500.0,7.92539228]
[1749525728310,0.00208838,109510.0,109500.0,7.85240911]
[1749525728512,0.00208838,109510.0,109500.0,7.92494088]
[1749525728744,0.00208838,109510.0,109500.0,7.85240911]
[1749525728949,0.00208838,109510.0,109500.0,7.92494055]
[1749525729107,0.00208838,109510.0,109500.0,7.85240911]
[1749525729458,0.00208838,109510.0,109500.0,7.48248911]
[1749525729636,0.01121929,109510.0,109500.0,7.85236911]
[1749525730144,0.02948145,109510.0,109500.0,7.85236911]
[1749525730351,0.02035029,109510.0,109500.0,7.85236911]
[1749525730997,0.00208838,109510.0,109500.0,7.85236911]
[1749525731218,0.01121929,109510.0,109500.0,7.85236911]
[1749525731449,0.00208838,109510.0,109500.0,7.48248911]
[1749525731630,0.01121921,109510.0,109500.0,7.48248911]
[1749525731863,0.01121921,109510.0,109500.0,7.85236911]
[1749525732304,0.02035029,109510.0,109500.0,7.48248911]
[1749525732534,0.01121921,109510.0,109500.0,7.94358858]
[1749525732753,0.01121921,109510.0,109500.0,7.85232911]
[1749525733182,0.01121921,109510.0,109500.0,7.80994603]
[1749525733398,0.01121921,109510.0,109500.0,7.94358858]
[1749525735307,0.02035029,109510.0,109500.0,7.9012055]
[1749525735510,0.01121921,109510.0,109500.0,7.94358858]
[1749525735657,0.02035029,109510.0,109500.0,7.94358858]
[1749525735863,0.01121921,109510.0,109500.0,7.94358858]
[1749525736262,0.02035029,109510.0,109500.0,7.94358858]
[1749525736470,0.01121921,109510.0,109500.0,7.9012055]
[1749525736676,0.22124468,109510.0,109500.0,2.93061675]
[1749525736880,0.04458146,109510.0,109500.0,3.29394858]
[1749525737085,0.01121929,109510.0,109500.0,3.30954858]
[1749525737588,0.02035029,109510.0,109500.0,3.30954858]
[1749525738025,0.02035029,109510.0,109500.0,2.93974858]
[1749525738243,0.02035029,109510.0,109500.0,3.30950858]
[1749525738447,0.01121921,109510.0,109500.0,3.30950858]
[1749525738645,0.02035021,109510.0,109500.0,3.30950858]
[1749525738848,0.01121921,109510.0,109500.0,3.30950858]
[1749525739053,0.00208838,109510.0,109500.0,3.30950858]
[1749525740202,0.00208838,109510.0,109500.0,3.24483031]
[1749525740460,0.01413008,109520.0,109510.0,5.83027207]
[1749525740671,0.01413008,109520.0,109510.0,6.39533964]
[1749525741112,0.01413008,109520.0,109510.0,6.79533964]
[1749525741330,0.02326024,109520.0,109510.0,6.79533964]
[1749525742505,0.01413008,109520.0,109510.0,6.79533964]
[1749525742715,0.02326033,109520.0,109510.0,6.24009304]
[1749525742937,0.02326033,109520.0,109510.0,6.79533964]
[1749525743661,0.01413008,109520.0,109510.0,6.79533964]
[1749525744540,0.02326024,109520.0,109510.0,6.79533964]
[1749525745357,0.05682115,109520.0,109510.0,6.7803398]
[1749525745567,0.05682115,109520.0,109510.0,6.7894708]
[1749525745775,0.06595181,109520.0,109510.0,6.7894708]
[1749525745985,0.05682115,109520.0,109510.0,6.7894708]
[1749525746186,0.05682107,109520.0,109510.0,6.7894708]
[1749525746799,0.06595165,109520.0,109510.0,6.7894708]
[1749525747005,0.06376824,109520.0,109510.0,6.7894708]
[1749525747626,0.07886824,109520.0,109510.0,6.7894708]
[1749525747813,0.06376882,109520.0,109510.0,6.7894708]
[1749525748159,0.07886882,109520.0,109510.0,6.7894708]
[1749525748362,0.07886882,109520.0,109510.0,6.69848109]
[1749525748568,0.06973866,109520.0,109510.0,6.69848117]
[1749525749437,0.24322362,109520.0,109510.0,1.61191618]
[1749525749669,0.21222362,109520.0,109510.0,1.71225261]
[1749525749871,0.21222362,109520.0,109510.0,1.43001261]
[1749525750113,0.21222362,109520.0,109510.0,1.71221261]
[1749525750314,0.21222362,109520.0,109510.0,1.72134394]
[1749525750718,0.21222362,109520.0,109510.0,1.52044948]
[1749525750944,0.21222362,109520.0,109510.0,1.52958106]
[1749525751140,0.21222362,109520.0,109510.0,1.71221278]
[1749525751347,0.20684579,109520.0,109510.0,1.42865162]
[1749525752188,0.20684579,109520.0,109510.0,1.4377832]
[1749525752629,0.22314579,109520.0,109510.0,1.4377832]
[1749525753034,0.22314579,109520.0,109510.0,1.62954633]
[1749525756020,0.22314579,109520.0,109510.0,1.63867766]
[1749525761278,0.22314579,109520.0,109510.0,1.62954633]
[1749525763218,0.22314579,109520.0,109510.0,1.63867766]
[1749525764732,0.22314579,109520.0,109510.0,1.08343106]
[1749525764953,0.22314579,109520.0,109510.0,1.63867766]
[1749525767669,0.22314579,109520.0,109510.0,1.62954633]
[1749525769466,0.22314579,109520.0,109510.0,1.63867766]
[1749525772810,0.22314579,109520.0,109510.0,1.64780891]
[1749525774121,0.23227629,109520.0,109510.0,1.64780891]
[1749525777055,0.23227629,109520.0,109510.0,1.63867766]
[1749525777490,0.23227629,109520.0,109510.0,1.64780891]
[1749525779390,0.23227629,109520.0,109510.0,1.65694007]
[1749525779669,0.21597629,109520.0,109510.0,1.65694007]
[1749525780070,0.23177629,109520.0,109510.0,1.65694007]
[1749525781300,0.23177629,109520.0,109510.0,2.21059785]
[1749525782566,0.23177629,109520.0,109510.0,2.21059735]
[1749525783395,0.23177629,109520.0,109510.0,2.20146627]
[1749525784530,0.23177629,109520.0,109510.0,2.17407253]
[1749525784986,0.23177629,109520.0,109510.0,1.88274112]
[1749525785222,0.22264579,109520.0,109510.0,1.42765721]
[1749525785437,0.22264579,109520.0,109510.0,1.14565721]
[1749525785656,0.22264579,109520.0,109510.0,1.42765721]
[1749525785869,0.22264579,109520.0,109510.0,1.14565721]
[1749525786097,0.24606459,109520.0,109510.0,0.57301765]
[1749525786326,0.24606459,109520.0,109510.0,0.5]
[1749525786554,0.24606459,109520.0,109510.0,0.5547381]
[1749525786784,0.24606459,109520.0,109510.0,1.10919029]
[1749525787437,0.24606459,109520.0,109510.0,0.5547381]
[1749525792993,0.24606459,109520.0,109510.0,1.10945007]
[1749525793614,0.24606459,109520.0,109510.0,0.5547381]
[1749525796109,0.24606459,109520.0,109510.0,1.10945007]
[1749525796726,0.22264579,109520.0,109510.0,1.10945007]
[1749525799006,0.22264579,109520.0,109510.0,0.70945007]
[1749525799424,0.22264579,109520.0,109510.0,1.10945007]
[1749525799631,0.23026271,109520.0,109510.0,1.10945007]
[1749525800049,0.22264579,109520.0,109510.0,1.11858165]
[1749525800261,0.21351504,109520.0,109510.0,1.33663197]
[1749525800472,0.21351504,109520.0,109510.0,1.40964962]
[1749525800674,0.18261504,109520.0,109510.0,1.61054417]
[1749525800881,0.18261504,109520.0,109510.0,1.21054417]
[1749525801501,0.18261504,109520.0,109510.0,1.61967542]
[1749525801707,0.18261504,109520.0,109510.0,1.60141284]
[1749525804000,0.19781504,109520.0,109510.0,1.60141284]
[1749525806039,0.18261504,109520.0,109510.0,1.61054425]
[1749525806241,0.18261504,109520.0,109510.0,1.6196755]
[1749525806452,0.18459958,109530.0,109520.0,0.19174579]
[1749525806672,0.01112983,109530.0,109520.0,1.0293599]
[1749525806875,0.20285778,109530.0,109520.0,1.02022949]
[1749525807101,0.20285778,109530.0,109520.0,1.43849048]
[1749525807512,0.20285778,109530.0,109520.0,1.44762081]
[1749525808070,0.20285778,109530.0,109520.0,1.44962081]
[1749525808268,0.20285778,109530.0,109520.0,6.50162081]
[1749525811179,0.20285778,109530.0,109520.0,6.49249048]
[1749525813030,0.02938932,109530.0,109520.0,6.70162081]
[1749525813250,0.02938932,109530.0,109520.0,6.70161981]
[1749525813470,0.02938932,109530.0,109520.0,6.69248965]
[1749525813892,0.02938866,109530.0,109520.0,6.70161981]
[1749525814106,0.03851849,109530.0,109520.0,6.70161981]
[1749525814221,0.22111686,109530.0,109520.0,6.9651994]
[1749525815378,0.22111686,109530.0,109520.0,6.97432965]